fUSD/lending_fUSD_20240527
["ID","MTS","AMOUNT","RATE_DAILY","PERIOD"]
[328029461,1716783046349,-511.60984723,0.00027944,4]
[328029462,1716783046359,-217.17706134,0.00027944,4]
[328029463,1716783046368,-432.18796527,0.00027944,4]
[328029464,1716783046378,-515.69029619,0.00027944,4]
[328029465,1716783046387,-500.0,0.00027944,4]
[328029466,1716783046396,-513.59027861,0.00027944,4]
[328029467,1716783046406,-500.0,0.00027944,4]
[328029468,1716783046416,-513.8192447,0.00027944,4]
[328029469,1716783046429,-513.42323592,0.00027944,4]
[328029470,1716783046439,-500.0,0.00027944,4]
[328029471,1716783046448,-2323.57,0.00027944,4]
[328029472,1716783046458,-501.5985506,0.00027944,4]
[328029473,1716783046468,-518.87494606,0.00027944,4]
[328029474,1716783046478,-500.0,0.00027944,4]
[328029475,1716783046488,-507.50252429,0.00027944,4]
[328029476,1716783046500,-422.17627099,0.00027944,4]
[328029477,1716783046510,-500.0,0.00027944,4]
[328029478,1716783046519,-500.0,0.00027944,4]
[328029479,1716783046529,-519.72811724,0.00027944,4]
[328029480,1716783046539,-517.79319064,0.00027944,4]
[328029481,1716783046549,-500.0,0.00027944,4]
[328029482,1716783046558,-508.09927209,0.00027944,4]
[328029483,1716783046568,-500.0,0.00027944,4]
[328029484,1716783046578,-1128.56,0.00027944,4]
[328029485,1716783046587,-510.66171334,0.00027944,4]
[328029486,1716783046597,-500.0,0.00027944,4]
[328029487,1716783046606,-500.0,0.00027944,4]
[328029488,1716783046615,-517.9012068,0.00027944,4]
[328029489,1716783046625,-500.0,0.00027944,4]
[328029490,1716783046633,-500.0,0.00027944,4]
[328029491,1716783046643,-500.0,0.00027944,4]
[328029492,1716783046651,-514.19090759,0.00027944,4]
[328029493,1716783046661,-511.69127273,0.00027944,4]
[328029494,1716783046670,-500.0,0.00027944,4]
[328029495,1716783046679,-516.69035862,0.00027944,4]
[328029496,1716783046688,-500.0,0.00027944,4]
[328029497,1716783046697,-512.36968231,0.00027944,4]
[328029498,1716783046706,-500.0,0.00027944,4]
[328029499,1716783046715,-500.0,0.00027944,4]
[328029500,1716783046725,-500.0,0.00027944,4]
[328029501,1716783046734,-500.0,0.00027944,4]
[328029502,1716783046743,-609.39,0.00027944,4]
[328029503,1716783046755,-500.0,0.00027944,4]
[328029504,1716783046764,-500.0,0.00027944,4]
[328029505,1716783046773,-500.0,0.00027944,4]
[328029506,1716783046782,-607.65,0.00027944,4]
[328029507,1716783046791,-500.0,0.00027944,4]
[328029508,1716783046800,-500.0,0.00027944,4]
[328029509,1716783046810,-500.0,0.00027944,4]
[328029510,1716783046819,-500.0,0.00027944,4]
[328029511,1716783046828,-500.0,0.00027944,4]
[328029512,1716783046838,-500.0,0.00027944,4]
[328029513,1716783046848,-500.0,0.00027944,4]
[328029514,1716783046858,-500.0,0.00027944,4]
[328029515,1716783046868,-500.0,0.00027944,4]
[328029516,1716783046878,-461.0,0.00027944,4]
[328029517,1716783046887,-527.46067341,0.00027944,4]
[328029518,1716783046896,-500.0,0.00027944,4]
[328029519,1716783046905,-500.0,0.00027944,4]
[328029520,1716783046915,-500.0,0.00027944,4]
[328029521,1716783046924,-500.0,0.00027944,4]
[328029522,1716783046933,-500.0,0.00027944,4]
[328029523,1716783046943,-525.11290684,0.00027944,4]
[328029524,1716783046952,-500.0,0.00027944,4]
[328029525,1716783046961,-500.0,0.00027944,4]
[328029526,1716783046970,-500.0,0.00027944,4]
[328029527,1716783046980,-500.0,0.00027944,4]
[328029528,1716783046989,-500.0,0.00027944,4]
[328029529,1716783046998,-500.0,0.00027944,4]
[328029530,1716783047009,-564.62,0.00027944,4]
[328029531,1716783047019,-480.0,0.00027944,4]
[328029532,1716783047029,-500.0,0.00027944,4]
[328029533,1716783047038,-500.0,0.00027944,4]
[328029534,1716783047047,-500.0,0.00027944,4]
[328029535,1716783047056,-500.0,0.00027944,4]
[328029536,1716783047066,-500.0,0.00027944,4]
[328029537,1716783047075,-360.40528628,0.00027944,4]
[328029538,1716783047084,-500.0,0.00027944,4]
[328029539,1716783047094,-500.0,0.00027944,4]
[328029540,1716783047103,-518.11972802,0.00027944,4]
[328029541,1716783047112,-500.0,0.00027944,4]
[328029542,1716783047121,-500.0,0.00027944,4]
[328029543,1716783047130,-500.0,0.00027944,4]
[328029544,1716783047139,-500.0,0.00027944,4]
[328029545,1716783047148,-500.0,0.00027944,4]
[328029546,1716783047157,-594.68,0.00027945,4]
[328029547,1716783047166,-593.23,0.00027945,4]
[328029548,1716783047175,-500.0,0.00027945,4]
[328029549,1716783047184,-554.41306655,0.00027945,4]
[328029550,1716783047193,-500.0,0.00027945,4]
[328029551,1716783047202,-500.0,0.00027945,4]
[328029552,1716783047211,-166.48,0.00027945,4]
[328029553,1716783047220,-454.16,0.00027945,4]
[328029554,1716783047229,-170.47,0.00027945,4]
[328029555,1716783047238,-450.63,0.00027945,4]
[328029556,1716783047247,-500.0,0.00027945,4]
[328029557,1716783047257,-371.65,0.00027945,4]
[328029558,1716783047267,-500.0,0.00027945,4]
[328029559,1716783047276,-500.0,0.00027945,4]
[328029560,1716783047285,-168.23,0.00027945,4]
[328029561,1716783047294,-490.47,0.00027945,4]
[328029562,1716783047303,-500.0,0.00027945,4]
[328029563,1716783047311,-500.0,0.00027945,4]
[328029564,1716783047321,-500.0,0.00027945,4]
[328029565,1716783047330,-189.30103207,0.00027945,4]
[328029566,1716783047339,-500.0,0.00027945,4]
[328029567,1716783047348,-500.0,0.00027945,4]
[328029568,1716783047357,-616.82,0.00027945,4]
[328029569,1716783047366,-500.0,0.00027945,4]
[328029570,1716783047375,-500.0,0.00027945,4]
[328029571,1716783047384,-173.88,0.00027945,4]
[328029572,1716783047393,-500.0,0.00027945,4]
[328029573,1716783047402,-500.0,0.00027945,4]
[328029574,1716783047411,-500.0,0.00027945,4]
[328029575,1716783047423,-161.2,0.00027945,4]
[328029576,1716783047432,-513.97669373,0.00027945,4]
[328029577,1716783047441,-275.13,0.00027945,4]
[328029578,1716783047450,-500.0,0.00027945,4]
[328029579,1716783047459,-500.0,0.00027945,4]
[328029580,1716783047468,-319.7,0.00027945,4]
[328029581,1716783047477,-354.98,0.00027945,4]
[328029582,1716783047486,-500.0,0.00027945,4]
[328029583,1716783047496,-500.0,0.00027945,4]
[328029584,1716783047508,-500.0,0.00027945,4]
[328029585,1716783047532,-500.0,0.00027945,4]
[328029586,1716783047554,-511.17248321,0.00027945,4]
[328029587,1716783047573,-500.0,0.00027945,4]
[328029588,1716783047592,-500.0,0.00027945,4]
[328029589,1716783047612,-500.0,0.00027945,4]
[328029590,1716783047634,-266.2045532,0.00027945,4]
[328029591,1716783047656,-500.0,0.00027945,4]
[328029592,1716783047678,-500.0,0.00027945,4]
[328029593,1716783047694,-500.0,0.00027945,4]
[328029594,1716783047703,-581.95,0.00027945,4]
[328029595,1716783047712,-216.39,0.00027945,4]
[328029596,1716783047721,-344.4,0.00027945,4]
[328029597,1716783047730,-609.99,0.00027945,4]
[328029598,1716783047739,-415.15,0.00027945,4]
[328029599,1716783047748,-368.87,0.00027945,4]
[328029600,1716783047757,-332.12966502,0.00027945,4]
[328029601,1716783047766,-421.06,0.00027945,4]
[328029602,1716783047776,-237.59,0.00027945,4]
[328029603,1716783047785,-200.0,0.00028137,2]
[328029604,1716783047794,-285.03,0.00028218,4]
[328029605,1716783047804,-177.06,0.00028218,4]
[328029606,1716783047813,-266.22,0.00028218,4]
[328029607,1716783047822,-500.0,0.00028218,4]
[328029608,1716783047831,-317.58,0.00028218,4]
[328029609,1716783047841,-431.34,0.00028218,4]
[328029610,1716783047851,-500.0,0.00028218,4]
[328029611,1716783047860,-500.0,0.00028218,4]
[328029612,1716783047870,-500.0,0.00028218,4]
[328029613,1716783047879,-500.0,0.00028218,4]
[328029614,1716783047889,-627.44,0.00028218,4]
[328029615,1716783047898,-500.0,0.00028218,4]
[328029616,1716783047907,-325.72,0.00028218,4]
[328029617,1716783047917,-500.0,0.00028218,4]
[328029618,1716783047926,-501.65,0.00028218,4]
[328029619,1716783047935,-563.35,0.00028218,4]
[328029620,1716783047944,-266.12,0.00028218,4]
[328029621,1716783047953,-605.43,0.00028218,4]
[328029622,1716783047963,-500.0,0.00028218,4]
[328029623,1716783048004,-500.0,0.00028218,4]
[328029624,1716783048014,-500.0,0.00028218,4]
[328029625,1716783048022,-390.9,0.00028218,4]
[328029626,1716783048031,-632.63,0.00028218,4]
[328029627,1716783048041,-340.71,0.00028218,4]
[328029628,1716783048050,-500.0,0.00028218,4]
[328029629,1716783048059,-500.0,0.00028218,4]
[328029630,1716783048069,-531.06,0.00028218,4]
[328029631,1716783048078,-150.0,0.00028218,4]
[328029632,1716783048087,-409.97,0.00028218,4]
[328029633,1716783048096,-418.45,0.00028218,4]
[328029634,1716783048105,-500.0,0.00028218,4]
[328029635,1716783048115,-500.0,0.00028218,4]
[328029636,1716783048125,-500.0,0.00028218,4]
[328029637,1716783048134,-533.99,0.00028218,4]
[328029638,1716783048143,-500.0,0.00028218,4]
[328029639,1716783048153,-500.0,0.00028218,4]
[328029640,1716783048161,-500.0,0.00028218,4]
[328029641,1716783048171,-376.51,0.00028218,4]
[328029642,1716783048180,-500.0,0.00028218,4]
[328029643,1716783048189,-172.77,0.00028218,4]
[328029644,1716783048199,-441.71,0.00028218,4]
[328029645,1716783048208,-500.0,0.00028218,4]
[328029646,1716783048218,-500.0,0.00028218,4]
[328029647,1716783048228,-581.83,0.00028218,4]
[328029648,1716783048237,-379.71,0.00028218,4]
[328029649,1716783048247,-644.63,0.00028218,4]
[328029650,1716783048258,-268.23,0.00028218,4]
[328029651,1716783048268,-185.98,0.00028218,4]
[328029652,1716783048278,-213.43,0.00028218,4]
[328029653,1716783048288,-375.64,0.00028218,4]
[328029654,1716783048298,-438.94,0.00028218,4]
[328029655,1716783048309,-500.0,0.00028218,4]
[328029656,1716783048320,-426.13,0.00028218,4]
[328029657,1716783048330,-395.12,0.00028218,4]
[328029658,1716783048340,-302.74,0.00028218,4]
[328029659,1716783048350,-500.0,0.00028218,4]
[328029660,1716783048360,-395.94,0.00028218,4]
[328029661,1716783048371,-254.18,0.00028218,4]
[328029662,1716783048380,-483.17698744,0.00028218,4]
[328029663,1716783048390,-515.94094553,0.00028218,4]
[328029664,1716783048400,-500.0,0.00028218,4]
[328029665,1716783048410,-572.85,0.00028218,4]
[328029666,1716783048420,-525.04116149,0.00028218,4]
[328029667,1716783048434,-500.0,0.00028218,4]
[328029668,1716783048443,-500.0,0.00028218,4]
[328029669,1716783048452,-500.0,0.00028218,4]
[328029670,1716783048463,-500.0,0.00028218,4]
[328029671,1716783048471,-509.07,0.00028218,4]
[328029672,1716783048480,-514.49604355,0.00028218,4]
[328029673,1716783048490,-500.0,0.00028218,4]
[328029674,1716783048498,-495.17,0.00028218,4]
[328029675,1716783048512,-500.0,0.00028218,4]
[328029676,1716783048521,-500.0,0.00028218,4]
[328029677,1716783048530,-500.0,0.00028218,4]
[328029678,1716783048538,-542.2,0.00028218,4]
[328029679,1716783048547,-500.0,0.00028218,4]
[328029680,1716783048556,-500.0,0.00028218,4]
[328029681,1716783048565,-500.0,0.00028218,4]
[328029682,1716783048574,-500.0,0.00028218,4]
[328029683,1716783048583,-500.0,0.00028218,4]
[328029684,1716783048591,-500.0,0.00028218,4]
[328029685,1716783048600,-551.81,0.00028218,4]
[328029686,1716783048609,-500.0,0.00028218,4]
[328029687,1716783048619,-500.0,0.00028218,4]
[328029688,1716783048628,-515.81,0.00028218,4]
[328029689,1716783048637,-500.0,0.00028218,4]
[328029690,1716783048647,-500.0,0.00028218,4]
[328029691,1716783048656,-282.03,0.00028218,4]
[328029692,1716783048665,-500.0,0.00028218,4]
[328029693,1716783048674,-221.92,0.00028218,4]
[328029694,1716783048683,-516.41088395,0.00028218,4]
[328029695,1716783048692,-500.0,0.00028218,4]
[328029696,1716783048701,-500.0,0.00028218,4]
[328029697,1716783048710,-500.0,0.00028218,4]
[328029698,1716783048719,-496.14,0.00028218,4]
[328029699,1716783048728,-511.18768019,0.00028218,4]
[328029700,1716783048737,-500.0,0.00028218,4]
[328029701,1716783048746,-494.11,0.00028218,4]
[328029702,1716783048757,-500.0,0.00028218,4]
[328029703,1716783048767,-500.0,0.00028218,4]
[328029704,1716783048776,-500.0,0.00028218,4]
[328029705,1716783048785,-482.95,0.00028218,4]
[328029706,1716783048795,-774.91,0.00028218,4]
[328029707,1716783048804,-500.0,0.00028218,4]
[328029708,1716783048813,-607.48,0.00028218,4]
[328029709,1716783048822,-512.50846919,0.00028218,4]
[328029710,1716783048831,-500.0,0.00028218,4]
[328029711,1716783048840,-154.18018772,0.00028218,4]
[328029712,1716783048849,-402.74,0.00028218,4]
[328029713,1716783048858,-516.66363019,0.00028218,4]
[328029714,1716783048867,-500.0,0.00028218,4]
[328029715,1716783048876,-500.0,0.00028218,4]
[328029716,1716783048885,-452.91,0.00028218,4]
[328029717,1716783048894,-500.0,0.00028218,4]
[328029718,1716783048903,-589.83,0.00028218,4]
[328029719,1716783048912,-274.23704407,0.00028218,4]
[328029720,1716783048921,-500.0,0.00028218,4]
[328029721,1716783048930,-500.0,0.00028218,4]
[328029722,1716783048939,-500.0,0.00028218,4]
[328029723,1716783048947,-500.0,0.00028218,4]
[328029724,1716783048956,-500.82,0.00028218,4]
[328029725,1716783048964,-382.15138273,0.00028218,4]
[328029726,1716783048974,-500.0,0.00028218,4]
[328029727,1716783048983,-500.0,0.00028218,4]
[328029728,1716783048991,-500.0,0.00028218,4]
[328029729,1716783049000,-360.3,0.00028218,4]
[328029730,1716783049010,-355.76631254,0.00028218,4]
[328029731,1716783049019,-346.15,0.00028218,4]
[328029732,1716783049029,-574.71,0.00028218,4]
[328029733,1716783049038,-1788.72,0.00028218,4]
[328029734,1716783049047,-500.0,0.00028218,4]
[328029735,1716783049056,-224.56,0.00028218,4]
[328029736,1716783049065,-588.24,0.00028218,4]
[328029737,1716783049073,-500.0,0.00028218,4]
[328029738,1716783049083,-2323.57,0.00028218,4]
[328029739,1716783049092,-500.0,0.00028218,4]
[328029740,1716783049102,-500.0,0.00028218,4]
[328029741,1716783049111,-280.54,0.00028218,4]
[328029742,1716783049121,-381.63121151,0.00028218,4]
[328029743,1716783049130,-1128.56,0.00028218,4]
[328029744,1716783049139,-500.0,0.00028218,4]
[328029745,1716783049148,-544.72867342,0.00028218,4]
[328029746,1716783049158,-500.0,0.00028218,4]
[328029747,1716783049167,-245.83615154,0.00028218,4]
[328029748,1716783049176,-500.0,0.00028218,4]
[328029749,1716783049185,-545.00636871,0.00028218,4]
[328029750,1716783049194,-500.0,0.00028218,4]
[328029751,1716783049203,-500.0,0.00028218,4]
[328029752,1716783049212,-500.0,0.00028218,4]
[328029753,1716783049221,-500.0,0.00028218,4]
[328029754,1716783049230,-527.95141265,0.00028218,4]
[328029755,1716783049239,-500.0,0.00028218,4]
[328029756,1716783049248,-500.0,0.00028218,4]
[328029757,1716783049259,-607.65,0.00028218,4]
[328029758,1716783049268,-582.26,0.00028218,4]
[328029759,1716783049277,-518.78129949,0.00028218,4]
[328029760,1716783049286,-500.0,0.00028218,4]
[328029761,1716783049295,-550.88,0.00028218,4]
[328029762,1716783049305,-500.0,0.00028218,4]
[328029763,1716783049314,-233.78,0.00028218,4]
[328029764,1716783049324,-324.01,0.00028218,4]
[328029765,1716783049333,-500.0,0.00028218,4]
[328029766,1716783049342,-500.0,0.00028218,4]
[328029767,1716783049351,-500.0,0.00028218,4]
[328029768,1716783049360,-500.0,0.00028218,4]
[328029769,1716783049369,-500.0,0.00028218,4]
[328029770,1716783049378,-500.0,0.00028218,4]
[328029771,1716783049387,-500.0,0.00028218,4]
[328029772,1716783049397,-500.0,0.00028218,4]
[328029773,1716783049406,-500.0,0.00028218,4]
[328029774,1716783049416,-500.0,0.00028218,4]
[328029775,1716783049428,-500.0,0.00028218,4]
[328029776,1716783049437,-500.0,0.00028218,4]
[328029777,1716783049446,-500.0,0.00028218,4]
[328029778,1716783049455,-219.75,0.00028218,4]
[328029779,1716783049466,-594.68,0.00028219,4]
[328029780,1716783049475,-500.0,0.00028219,4]
[328029781,1716783049484,-192.62,0.00028219,4]
[328029782,1716783049494,-500.0,0.00028219,4]
[328029783,1716783049504,-303.57,0.00028219,4]
[328029784,1716783049514,-500.0,0.00028219,4]
[328029785,1716783049523,-312.76741599,0.00028219,4]
[328029786,1716783049532,-500.0,0.00028219,4]
[328029787,1716783049542,-500.0,0.00028219,4]
[328029788,1716783049551,-500.0,0.00028219,4]
[328029789,1716783049560,-500.0,0.00028219,4]
[328029790,1716783049570,-500.0,0.00028219,4]
[328029791,1716783049579,-272.49,0.00028219,4]
[328029792,1716783049588,-517.46939374,0.00028219,4]
[328029793,1716783049598,-500.0,0.00028219,4]
[328029794,1716783049607,-356.04,0.00028219,4]
[328029795,1716783049616,-515.00459868,0.00028219,4]
[328029796,1716783049625,-500.0,0.00028219,4]
[328029797,1716783049634,-500.0,0.00028219,4]
[328029798,1716783049643,-622.89,0.00028219,4]
[328029799,1716783049653,-500.0,0.00028219,4]
[328029800,1716783049663,-500.0,0.00028219,4]
[328029801,1716783049672,-500.0,0.00028219,4]
[328029802,1716783049681,-279.06687703,0.00028219,4]
[328029803,1716783049691,-500.0,0.00028219,4]
[328029804,1716783049700,-500.0,0.00028219,4]
[328029805,1716783049709,-500.0,0.00028219,4]
[328029806,1716783049719,-173.95,0.00028219,4]
[328029807,1716783049728,-500.0,0.00028492,4]
[328029808,1716783049738,-168.41,0.00028492,4]
[328029809,1716783049748,-485.55,0.00028492,4]
[328029810,1716783049758,-500.0,0.00028492,4]
[328029811,1716783049767,-456.82,0.00028492,4]
[328029812,1716783049776,-175.31,0.00028492,4]
[328029813,1716783049786,-500.0,0.00028492,4]
[328029814,1716783049795,-524.66,0.00028492,4]
[328029815,1716783049804,-500.0,0.00028492,4]
[328029816,1716783049813,-222.4,0.00028492,4]
[328029817,1716783049823,-500.0,0.00028492,4]
[328029818,1716783049832,-500.0,0.00028492,4]
[328029819,1716783049841,-243.88,0.00028492,4]
[328029820,1716783049851,-230.08,0.00028492,4]
[328029821,1716783049861,-468.12,0.00028492,4]
[328029822,1716783049870,-327.29,0.00028492,4]
[328029823,1716783049879,-242.63,0.00028492,4]
[328029824,1716783049888,-196.1,0.00028492,4]
[328029825,1716783049897,-500.0,0.00028492,4]
[328029826,1716783049907,-618.06,0.00028492,4]
[328029827,1716783049916,-500.0,0.00028492,4]
[328029828,1716783049926,-614.4,0.00028492,4]
[328029829,1716783049935,-462.43,0.00028492,4]
[328029830,1716783049944,-500.0,0.00028492,4]
[328029831,1716783049954,-175.99,0.00028492,4]
[328029832,1716783049963,-500.0,0.00028492,4]
[328029833,1716783049972,-500.0,0.00028492,4]
[328029834,1716783049981,-379.74,0.00028492,4]
[328029835,1716783049991,-431.69,0.00028492,4]
[328029836,1716783050000,-509.07,0.00028492,4]
[328029837,1716783050010,-500.0,0.00028492,4]
[328029838,1716783050019,-500.0,0.00028492,4]
[328029839,1716783050029,-517.31552948,0.00028492,4]
[328029840,1716783050039,-514.39590317,0.00028492,4]
[328029841,1716783050048,-500.0,0.00028492,4]
[328029842,1716783050058,-162.48,0.00028492,4]
[328029843,1716783050067,-500.0,0.00028492,4]
[328029844,1716783050077,-515.30890942,0.00028492,4]
[328029845,1716783050087,-500.0,0.00028492,4]
[328029846,1716783050096,-500.0,0.00028492,4]
[328029847,1716783050105,-500.0,0.00028492,4]
[328029848,1716783050115,-518.70350557,0.00028492,4]
[328029849,1716783050124,-281.45,0.00028492,4]
[328029850,1716783050133,-500.0,0.00028492,4]
[328029851,1716783050142,-500.0,0.00028492,4]
[328029852,1716783050152,-520.03005876,0.00028492,4]
[328029853,1716783050161,-500.0,0.00028492,4]
[328029854,1716783050170,-516.85973928,0.00028492,4]
[328029855,1716783050180,-521.46844874,0.00028492,4]
[328029856,1716783050189,-510.13,0.00028492,4]
[328029857,1716783050198,-412.53,0.00028492,4]
[328029858,1716783050208,-318.64,0.00028492,4]
[328029859,1716783050218,-774.91,0.00028492,4]
[328029860,1716783050227,-500.0,0.00028492,4]
[328029861,1716783050237,-500.0,0.00028492,4]
[328029862,1716783050246,-500.0,0.00028492,4]
[328029863,1716783050256,-249.96,0.00028492,4]
[328029864,1716783050266,-500.0,0.00028492,4]
[328029865,1716783050275,-500.0,0.00028492,4]
[328029866,1716783050285,-165.33,0.00028492,4]
[328029867,1716783050294,-513.13,0.00028492,4]
[328029868,1716783050304,-500.0,0.00028492,4]
[328029869,1716783050314,-500.0,0.00028492,4]
[328029870,1716783050323,-500.0,0.00028492,4]
[328029871,1716783050332,-163.13,0.00028492,4]
[328029872,1716783050341,-574.71,0.00028492,4]
[328029873,1716783050351,-1788.72,0.00028492,4]
[328029874,1716783050360,-222.33,0.00028492,4]
[328029875,1716783050370,-500.0,0.00028492,4]
[328029876,1716783050379,-2323.57,0.00028492,4]
[328029877,1716783050389,-514.65,0.00028492,4]
[328029878,1716783050399,-639.44,0.00028492,4]
[328029879,1716783050408,-1128.56,0.00028492,4]
[328029880,1716783050418,-500.0,0.00028492,4]
[328029881,1716783050431,-289.88,0.00028492,4]
[328029882,1716783050441,-500.0,0.00028492,4]
[328029883,1716783050451,-480.23,0.00028492,4]
[328029884,1716783050460,-500.0,0.00028492,4]
[328029885,1716783050471,-500.0,0.00028492,4]
[328029886,1716783050481,-500.0,0.00028492,4]
[328029887,1716783050490,-304.87,0.00028492,4]
[328029888,1716783050500,-500.0,0.00028492,4]
[328029889,1716783050510,-607.65,0.00028492,4]
[328029890,1716783050520,-500.0,0.00028492,4]
[328029891,1716783050530,-500.0,0.00028492,4]
[328029892,1716783050539,-500.0,0.00028492,4]
[328029893,1716783050548,-500.0,0.00028492,4]
[328029894,1716783050558,-527.76808796,0.00028492,4]
[328029895,1716783050567,-257.2,0.00028492,4]
[328029896,1716783050577,-504.59315276,0.00028492,4]
[328029897,1716783050586,-500.0,0.00028492,4]
[328029898,1716783050596,-601.87,0.00028492,4]
[328029899,1716783050605,-291.33,0.00028492,4]
[328029900,1716783050615,-476.8,0.00028492,4]
[328029901,1716783050624,-500.0,0.00028492,4]
[328029902,1716783050634,-500.0,0.00028492,4]
[328029903,1716783050643,-500.0,0.00028492,4]
[328029904,1716783050653,-613.70762993,0.00028492,4]
[328029905,1716783050662,-594.68,0.00028493,4]
[328029906,1716783050671,-209.18058882,0.00028493,4]
[328029907,1716783050680,-500.0,0.00028493,4]
[328029908,1716783050690,-290.17,0.00028493,4]
[328029909,1716783050699,-500.0,0.00028493,4]
[328029910,1716783050709,-250.59,0.00028493,4]
[328029911,1716783050718,-500.0,0.00028493,4]
[328029912,1716783050727,-428.31244487,0.00028493,4]
[328029913,1716783050736,-500.0,0.00028493,4]
[328029914,1716783050745,-500.0,0.00028493,4]
[328029915,1716783050755,-500.0,0.00028493,4]
[328029916,1716783050765,-500.0,0.00028493,4]
[328029917,1716783050775,-500.0,0.00028493,4]
[328029918,1716783050784,-500.0,0.00028493,4]
[328029919,1716783050793,-445.5834535,0.00028493,4]
[328029920,1716783050802,-500.0,0.00028493,4]
[328029921,1716783050812,-484.15,0.00028493,4]
[328029922,1716783050821,-363.25426856,0.00028648,2]
[328029923,1716783050830,-165.07299819,0.00028689,2]
[328029924,1716783050839,-374.47,0.00028766,4]
[328029925,1716783050848,-602.66,0.00028766,4]
[328029926,1716783050858,-500.0,0.00028766,4]
[328029927,1716783050867,-500.0,0.00028766,4]
[328029928,1716783050876,-180.3,0.00028766,4]
[328029929,1716783050885,-396.97,0.00028766,4]
[328029930,1716783050894,-500.0,0.00028766,4]
[328029931,1716783050903,-500.0,0.00028766,4]
[328029932,1716783050912,-500.0,0.00028766,4]
[328029933,1716783050921,-227.71,0.00028766,4]
[328029934,1716783050931,-500.0,0.00028766,4]
[328029935,1716783050940,-509.07,0.00028766,4]
[328029936,1716783050949,-500.0,0.00028766,4]
[328029937,1716783050958,-500.0,0.00028766,4]
[328029938,1716783050967,-500.0,0.00028766,4]
[328029939,1716783050976,-451.76,0.00028766,4]
[328029940,1716783050985,-500.0,0.00028766,4]
[328029941,1716783050994,-500.0,0.00028766,4]
[328029942,1716783051004,-500.0,0.00028766,4]
[328029943,1716783051014,-500.0,0.00028766,4]
[328029944,1716783051023,-421.74,0.00028766,4]
[328029945,1716783051032,-342.53,0.00028766,4]
[328029946,1716783051042,-774.91,0.00028766,4]
[328029947,1716783051051,-481.2,0.00028766,4]
[328029948,1716783051061,-500.0,0.00028766,4]
[328029949,1716783051070,-500.0,0.00028766,4]
[328029950,1716783051079,-500.0,0.00028766,4]
[328029951,1716783051088,-500.0,0.00028766,4]
[328029952,1716783051098,-500.0,0.00028766,4]
[328029953,1716783051107,-252.81,0.00028766,4]
[328029954,1716783051116,-500.0,0.00028766,4]
[328029955,1716783051125,-574.71,0.00028766,4]
[328029956,1716783051135,-1788.72,0.00028766,4]
[328029957,1716783051144,-500.0,0.00028766,4]
[328029958,1716783051153,-2323.57,0.00028766,4]
[328029959,1716783051162,-1128.56,0.00028766,4]
[328029960,1716783051172,-500.0,0.00028766,4]